[Event "GrandPrix_30.05"]
[Site "Chess.com"]
[Date "2020.05.30"]
[Round "1"]
[White "levvard"]
[Black "Nitzan_Steinberg"]
[Result "0-1"]
[WhiteElo "2026"]
[BlackElo "2360"]
[TimeControl "600+2"]
[EndTime "8:12:51 PDT"]
[Termination "Nitzan_Steinberg won by resignation"]

1. b4 {[%clk 0:10:00.3]} 1... e5 {[%clk 0:09:59]} 2. Bb2 {[%clk 0:10:00.4]} 2...
d6 {[%clk 0:09:59.9]} 3. a3 {[%clk 0:09:57.4]} 3... a5 {[%clk 0:09:47.9]} 4. c3
{[%clk 0:09:55.3]} 4... Nf6 {[%clk 0:09:42.6]} 5. e3 {[%clk 0:09:55]} 5... e4
{[%clk 0:09:38.7]} 6. d3 {[%clk 0:09:54.6]} 6... exd3 {[%clk 0:09:39.3]} 7. Bxd3
{[%clk 0:09:55]} 7... Nc6 {[%clk 0:09:40.2]} 8. Nf3 {[%clk 0:09:54.9]} 8... Bg4
{[%clk 0:09:34.6]} 9. O-O {[%clk 0:09:37.8]} 9... d5 {[%clk 0:09:30.5]} 10. Nbd2
{[%clk 0:09:35.8]} 10... Bd6 {[%clk 0:09:31.1]} 11. c4 {[%clk 0:09:34.7]} 11...
axb4 {[%clk 0:09:14.8]} 12. cxd5 {[%clk 0:09:28.2]} 12... Nxd5 {[%clk
0:08:48.5]} 13. Bxg7 {[%clk 0:09:24.1]} 13... Rg8 {[%clk 0:08:49]} 14. Bd4
{[%clk 0:09:22.1]} 14... Bh3 {[%clk 0:08:11.6]} 15. g3 {[%clk 0:09:12.7]} 15...
Bxf1 {[%clk 0:08:10]} 16. Qxf1 {[%clk 0:09:12.4]} 16... Nxd4 {[%clk 0:07:53.5]}
17. Nxd4 {[%clk 0:09:12.6]} 17... Rxa3 {[%clk 0:07:16.3]} 18. Nc4 {[%clk
0:09:08.9]} 18... Rxa1 {[%clk 0:05:57.2]} 19. Nxd6+ {[%clk 0:09:07.7]} 19...
Qxd6 {[%clk 0:05:24.4]} 20. Qxa1 {[%clk 0:09:06.9]} 20... Nb6 {[%clk 0:05:20.3]}
21. Qa7 {[%clk 0:08:59.1]} 21... c5 {[%clk 0:05:12.8]} 22. Bb5+ {[%clk
0:08:57.3]} 22... Kf8 {[%clk 0:04:58.7]} 23. Nf5 {[%clk 0:08:54]} 23... Qc7
{[%clk 0:04:49.2]} 24. Qa1 {[%clk 0:08:47.9]} 24... Qd8 {[%clk 0:04:20.4]} 25.
Qe5 {[%clk 0:08:45.4]} 25... Nc8 {[%clk 0:03:35.3]} 26. Qxc5+ {[%clk 0:08:42.3]}
26... Ne7 {[%clk 0:03:36.3]} 27. Qxb4 {[%clk 0:08:39.3]} 27... Rg6 {[%clk
0:03:20.3]} 28. Kg2 {[%clk 0:08:33.5]} 28... Rb6 {[%clk 0:03:09.3]} 29. g4
{[%clk 0:08:25.3]} 29... Qd5+ {[%clk 0:02:54.8]} 30. e4 {[%clk 0:08:24.9]} 30...
Qe5 {[%clk 0:02:51.9]} 31. Qa3 {[%clk 0:08:11.9]} 31... Qxe4+ {[%clk 0:02:01.4]}
32. f3 {[%clk 0:08:12.8]} 32... Qc2+ {[%clk 0:01:58.7]} 33. Kg3 {[%clk
0:08:12.8]} 33... Qc7+ {[%clk 0:01:59.3]} 34. Kh3 {[%clk 0:08:04.2]} 34... Rxb5
{[%clk 0:01:58]} 0-1

[Event "GrandPrix_30.05"]
[Site "Chess.com"]
[Date "2020.05.30"]
[Round "1"]
[White "dzhumagaliev"]
[Black "Onischuk_V"]
[Result "0-1"]
[WhiteElo "2101"]
[BlackElo "2468"]
[TimeControl "600+2"]
[EndTime "8:13:24 PDT"]
[Termination "Onischuk_V won by resignation"]

1. Nf3 {[%clk 0:10:01.3]} 1... g6 {[%clk 0:09:55.3]} 2. h4 {[%clk 0:10:00.7]}
2... Nf6 {[%clk 0:09:49.4]} 3. d4 {[%clk 0:09:56.8]} 3... h6 {[%clk 0:09:45]} 4.
c4 {[%clk 0:09:54.6]} 4... d6 {[%clk 0:09:45.7]} 5. Nc3 {[%clk 0:09:53.8]} 5...
Bg7 {[%clk 0:09:40.7]} 6. e4 {[%clk 0:09:51.9]} 6... Bg4 {[%clk 0:09:40.5]} 7.
Be2 {[%clk 0:09:50.5]} 7... Nc6 {[%clk 0:09:33.9]} 8. d5 {[%clk 0:09:48.5]} 8...
Bxf3 {[%clk 0:09:15.7]} 9. Bxf3 {[%clk 0:09:42.6]} 9... Ne5 {[%clk 0:09:16.8]}
10. Be2 {[%clk 0:09:41.8]} 10... h5 {[%clk 0:09:17.9]} 11. O-O {[%clk
0:09:35.3]} 11... c6 {[%clk 0:09:14.1]} 12. Be3 {[%clk 0:09:30.1]} 12... O-O
{[%clk 0:09:10.4]} 13. f3 {[%clk 0:09:05.5]} 13... Qa5 {[%clk 0:08:54.8]} 14.
Rb1 {[%clk 0:09:00.7]} 14... Rfc8 {[%clk 0:08:54.4]} 15. b4 {[%clk 0:08:58.2]}
15... Qd8 {[%clk 0:08:55.2]} 16. Qb3 {[%clk 0:08:51.2]} 16... cxd5 {[%clk
0:08:34]} 17. Nxd5 {[%clk 0:08:28]} 17... Nxd5 {[%clk 0:08:31]} 18. cxd5 {[%clk
0:08:29.9]} 18... Rc3 {[%clk 0:08:20.3]} 19. Qxc3 {[%clk 0:08:09.8]} 19... Nxf3+
{[%clk 0:08:20.7]} 20. Rxf3 {[%clk 0:08:10.3]} 20... Bxc3 {[%clk 0:08:21.2]} 21.
Rbf1 {[%clk 0:08:00.3]} 21... Bf6 {[%clk 0:08:21.1]} 22. Kh2 {[%clk 0:07:52.5]}
22... Rc8 {[%clk 0:08:17.4]} 23. Bg5 {[%clk 0:07:49.9]} 23... Bxg5 {[%clk
0:08:04.5]} 24. hxg5 {[%clk 0:07:51.8]} 24... Qf8 {[%clk 0:08:05.6]} 25. Bb5
{[%clk 0:07:30.1]} 25... Qg7 {[%clk 0:08:05.1]} 26. Bd7 {[%clk 0:07:30.6]} 26...
Qe5+ {[%clk 0:07:29.2]} 27. Kh1 {[%clk 0:07:17.8]} 27... Rf8 {[%clk 0:07:27.7]}
28. Be6 {[%clk 0:07:13.9]} 28... Qxg5 {[%clk 0:07:19.1]} 29. Rxf7 {[%clk
0:07:09.3]} 29... Rxf7 {[%clk 0:07:14.6]} 30. Rxf7 {[%clk 0:07:11.2]} 30... Kh8
{[%clk 0:07:05.8]} 31. b5 {[%clk 0:06:52.1]} 31... Qh4+ {[%clk 0:07:02.1]} 32.
Kg1 {[%clk 0:06:52]} 32... Qxe4 {[%clk 0:07:02.8]} 33. Kf2 {[%clk 0:06:46]}
33... Qa4 {[%clk 0:06:43.8]} 34. Kf3 {[%clk 0:06:40.6]} 34... Qxa2 {[%clk
0:05:55.3]} 35. g4 {[%clk 0:06:23]} 35... Qa3+ {[%clk 0:05:36.7]} 36. Kf4 {[%clk
0:06:23.6]} 36... Qc1+ {[%clk 0:05:37]} 37. Kf3 {[%clk 0:06:17.8]} 37... Qc3+
{[%clk 0:05:33.9]} 38. Kf4 {[%clk 0:06:12.3]} 38... Qe5+ {[%clk 0:05:32.8]} 39.
Kf3 {[%clk 0:06:12.9]} 39... h4 {[%clk 0:05:28.6]} 40. Kg2 {[%clk 0:05:18.1]}
40... Qg3+ {[%clk 0:05:23.2]} 41. Kf1 {[%clk 0:05:16.6]} 41... h3 {[%clk
0:05:15.8]} 42. g5 {[%clk 0:05:17.8]} 42... Qxg5 {[%clk 0:04:58.6]} 43. Bxh3
{[%clk 0:05:14.2]} 43... Qxd5 {[%clk 0:04:57.8]} 44. Rxe7 {[%clk 0:05:13.7]}
44... Qf3+ {[%clk 0:04:54.7]} 0-1

[Event "GrandPrix_30.05"]
[Site "Chess.com"]
[Date "2020.05.30"]
[Round "1"]
[White "ZverevLev"]
[Black "Sam_ChessMood"]
[Result "0-1"]
[WhiteElo "2169"]
[BlackElo "2588"]
[TimeControl "600+2"]
[EndTime "8:13:34 PDT"]
[Termination "Sam_ChessMood won by resignation"]

1. e4 {[%clk 0:09:58.1]} 1... c5 {[%clk 0:09:50.9]} 2. Nf3 {[%clk 0:09:57.6]}
2... d6 {[%clk 0:09:51.9]} 3. d4 {[%clk 0:09:57.3]} 3... cxd4 {[%clk 0:09:50]}
4. Nxd4 {[%clk 0:09:59.2]} 4... Nf6 {[%clk 0:09:50.7]} 5. Nc3 {[%clk 0:09:59]}
5... a6 {[%clk 0:09:51.3]} 6. Bg5 {[%clk 0:09:57.9]} 6... Nbd7 {[%clk
0:09:40.3]} 7. f4 {[%clk 0:09:57.1]} 7... Qc7 {[%clk 0:09:15.6]} 8. Qf3 {[%clk
0:09:55.9]} 8... h6 {[%clk 0:08:49.9]} 9. Bxf6 {[%clk 0:09:55.2]} 9... Nxf6
{[%clk 0:08:50.5]} 10. f5 {[%clk 0:09:55.7]} 10... Rg8 {[%clk 0:08:04.1]} 11.
O-O-O {[%clk 0:09:44.3]} 11... g5 {[%clk 0:08:05]} 12. fxg6 {[%clk 0:09:43.8]}
12... Bg4 {[%clk 0:07:41.3]} 13. gxf7+ {[%clk 0:09:37.6]} 13... Kxf7 {[%clk
0:07:43.2]} 14. Qd3 {[%clk 0:09:33.4]} 14... Bxd1 {[%clk 0:07:38.4]} 15. Nxd1
{[%clk 0:09:32.7]} 15... Rg5 {[%clk 0:06:44.4]} 16. Qb3+ {[%clk 0:08:29.6]}
16... d5 {[%clk 0:06:43.3]} 17. exd5 {[%clk 0:08:29.7]} 17... Qf4+ {[%clk
0:06:28.1]} 18. Qe3 {[%clk 0:08:28.8]} 18... Qxe3+ {[%clk 0:05:55.4]} 19. Nxe3
{[%clk 0:08:30.7]} 19... b5 {[%clk 0:05:51.9]} 20. Bd3 {[%clk 0:08:20.4]} 20...
Re5 {[%clk 0:05:39.3]} 21. Ndf5 {[%clk 0:08:03.3]} 21... Rd8 {[%clk 0:05:27.7]}
22. Rf1 {[%clk 0:07:57.5]} 22... Kg8 {[%clk 0:05:18.1]} 23. c4 {[%clk
0:07:46.6]} 23... e6 {[%clk 0:05:18.8]} 24. dxe6 {[%clk 0:06:06.9]} 24... Rxd3
{[%clk 0:05:18]} 25. e7 {[%clk 0:05:19.2]} 25... Bxe7 {[%clk 0:05:04.7]} 26.
Nxe7+ {[%clk 0:05:21.1]} 26... Rxe7 {[%clk 0:05:05.3]} 27. Rxf6 {[%clk
0:05:17.3]} 27... Rdxe3 {[%clk 0:04:48.8]} 28. cxb5 {[%clk 0:05:17]} 28... axb5
{[%clk 0:04:36.6]} 29. Rxh6 {[%clk 0:05:16.5]} 29... Re2 {[%clk 0:04:22]} 30.
Rh5 {[%clk 0:05:10.5]} 30... Rxg2 {[%clk 0:04:21.1]} 31. Kd1 {[%clk 0:05:06.2]}
31... Rxb2 {[%clk 0:04:20]} 32. h4 {[%clk 0:05:02.7]} 32... b4 {[%clk
0:04:09.6]} 33. Rg5+ {[%clk 0:05:02]} 33... Rg7 {[%clk 0:04:10.1]} 0-1

[Event "GrandPrix_30.05"]
[Site "Chess.com"]
[Date "2020.05.30"]
[Round "1"]
[White "Kobalia"]
[Black "ulkaf961"]
[Result "1-0"]
[WhiteElo "2354"]
[BlackElo "2016"]
[TimeControl "600+2"]
[EndTime "8:13:53 PDT"]
[Termination "Kobalia won by resignation"]

1. e4 {[%clk 0:09:55.4]} 1... e6 {[%clk 0:10:00.4]} 2. d3 {[%clk 0:09:55.5]}
2... d5 {[%clk 0:10:01.4]} 3. Nd2 {[%clk 0:09:55.9]} 3... c5 {[%clk 0:09:53.7]}
4. Ngf3 {[%clk 0:09:54.3]} 4... Nc6 {[%clk 0:09:54.3]} 5. g3 {[%clk 0:09:54.1]}
5... g6 {[%clk 0:09:51.2]} 6. Bg2 {[%clk 0:09:53.7]} 6... Bg7 {[%clk 0:09:51.4]}
7. O-O {[%clk 0:09:54.7]} 7... Nge7 {[%clk 0:09:43.6]} 8. Re1 {[%clk 0:09:55.4]}
8... O-O {[%clk 0:09:44.1]} 9. c3 {[%clk 0:09:55.9]} 9... b5 {[%clk 0:09:37.9]}
10. e5 {[%clk 0:09:30.2]} 10... Rb8 {[%clk 0:09:30.6]} 11. d4 {[%clk 0:09:25.2]}
11... Qc7 {[%clk 0:08:00.7]} 12. Nb3 {[%clk 0:08:58.5]} 12... c4 {[%clk
0:07:46]} 13. Nc5 {[%clk 0:08:57.8]} 13... b4 {[%clk 0:07:45.5]} 14. h4 {[%clk
0:08:48.1]} 14... h6 {[%clk 0:07:12]} 15. Bd2 {[%clk 0:08:36.9]} 15... a5 {[%clk
0:07:07.9]} 16. a4 {[%clk 0:08:31.5]} 16... bxc3 {[%clk 0:06:24.5]} 17. bxc3
{[%clk 0:08:30.5]} 17... Nd8 {[%clk 0:06:23.8]} 18. Nh2 {[%clk 0:08:25]} 18...
Rb6 {[%clk 0:05:40.1]} 19. Ng4 {[%clk 0:08:23.6]} 19... Nf5 {[%clk 0:05:25]} 20.
Qc1 {[%clk 0:08:22.7]} 20... h5 {[%clk 0:03:23.1]} 21. Nf6+ {[%clk 0:08:17]}
21... Bxf6 {[%clk 0:02:52.6]} 22. exf6 {[%clk 0:08:16.6]} 22... Nb7 {[%clk
0:02:53.9]} 23. Bf4 {[%clk 0:07:52.6]} 23... Qd8 {[%clk 0:02:50.8]} 24. Nxb7
{[%clk 0:07:52.6]} 24... Bxb7 {[%clk 0:02:48.8]} 25. Be5 {[%clk 0:07:53.8]}
25... Kh7 {[%clk 0:02:43.4]} 26. Bh3 {[%clk 0:07:51.9]} 26... Nd6 {[%clk
0:02:25.6]} 27. Qf4 {[%clk 0:07:42.3]} 27... Ne4 {[%clk 0:02:06.3]} 28. Bc7
{[%clk 0:07:25.9]} 28... e5 {[%clk 0:01:15.8]} 29. Bxd8 {[%clk 0:07:22.2]} 29...
exf4 {[%clk 0:01:15.9]} 30. Bxb6 {[%clk 0:07:23.1]} 1-0

[Event "GrandPrix_30.05"]
[Site "Chess.com"]
[Date "2020.05.30"]
[Round "1"]
[White "Rikikits"]
[Black "jacky72"]
[Result "1-0"]
[WhiteElo "2737"]
[BlackElo "2198"]
[TimeControl "600+2"]
[EndTime "8:14:18 PDT"]
[Termination "Rikikits won by checkmate"]

1. e4 {[%clk 0:10:01.9]} 1... e5 {[%clk 0:09:58.8]} 2. Nc3 {[%clk 0:10:01.9]}
2... Nf6 {[%clk 0:09:49.5]} 3. f4 {[%clk 0:09:52]} 3... d5 {[%clk 0:09:48.5]} 4.
fxe5 {[%clk 0:09:52.3]} 4... Nxe4 {[%clk 0:09:48.4]} 5. Qf3 {[%clk 0:09:53.9]}
5... Ng5 {[%clk 0:09:26.5]} 6. Qxd5 {[%clk 0:09:46.5]} 6... Qe7 {[%clk 0:09:12]}
7. d4 {[%clk 0:09:41.1]} 7... Nc6 {[%clk 0:09:03.2]} 8. Bb5 {[%clk 0:08:48.3]}
8... Bd7 {[%clk 0:08:55.9]} 9. h4 {[%clk 0:08:28.5]} 9... Ne6 {[%clk 0:08:45.7]}
10. Nf3 {[%clk 0:08:29]} 10... O-O-O {[%clk 0:08:26.8]} 11. Be3 {[%clk 0:07:38]}
11... Ncxd4 {[%clk 0:07:27.3]} 12. Nxd4 {[%clk 0:07:32.6]} 12... Bxb5 {[%clk
0:07:14.3]} 13. Nf5 {[%clk 0:07:28.3]} 13... Qb4 {[%clk 0:06:07.8]} 14. Qxb5
{[%clk 0:07:21.2]} 14... Qg4 {[%clk 0:06:09.1]} 15. O-O {[%clk 0:07:15.5]} 15...
g6 {[%clk 0:06:06.9]} 16. Nh6 {[%clk 0:06:15.5]} 16... Bxh6 {[%clk 0:05:57]} 17.
Bxh6 {[%clk 0:06:17.4]} 17... Nd4 {[%clk 0:05:36.7]} 18. Qa5 {[%clk 0:05:41]}
18... Qxh4 {[%clk 0:04:54.4]} 19. Rxf7 {[%clk 0:05:13.2]} 19... Nf3+ {[%clk
0:04:24]} 20. Rxf3 {[%clk 0:04:34.9]} 20... Qxh6 {[%clk 0:04:25.3]} 21. Qxa7
{[%clk 0:04:15.6]} 21... Rhf8 {[%clk 0:04:05.9]} 22. e6 {[%clk 0:03:58.4]} 22...
c6 {[%clk 0:03:55]} 23. e7 {[%clk 0:03:58.1]} 23... Rxf3 {[%clk 0:03:51.1]} 24.
Qa8+ {[%clk 0:03:58.8]} 24... Kd7 {[%clk 0:03:51.5]} 25. Qxd8+ {[%clk
0:03:57.7]} 25... Ke6 {[%clk 0:03:53.2]} 26. e8=Q+ {[%clk 0:03:59.6]} 26... Kf5
{[%clk 0:03:54.1]} 27. Qe4# {[%clk 0:03:59]} 1-0

[Event "GrandPrix_30.05"]
[Site "Chess.com"]
[Date "2020.05.30"]
[Round "1"]
[White "SacrificeGod"]
[Black "Gannikus21"]
[Result "0-1"]
[WhiteElo "2269"]
[BlackElo "2214"]
[TimeControl "600+2"]
[EndTime "8:14:30 PDT"]
[Termination "Gannikus21 won by resignation"]

1. e4 {[%clk 0:09:59.6]} 1... d6 {[%clk 0:10:00.4]} 2. d4 {[%clk 0:09:58.6]}
2... g6 {[%clk 0:10:00.6]} 3. Nc3 {[%clk 0:09:57.5]} 3... Bg7 {[%clk 0:10:01]}
4. f4 {[%clk 0:09:56.7]} 4... Nf6 {[%clk 0:10:00.5]} 5. Nf3 {[%clk 0:09:55.7]}
5... O-O {[%clk 0:10:00.2]} 6. e5 {[%clk 0:09:54.8]} 6... dxe5 {[%clk
0:10:00.7]} 7. fxe5 {[%clk 0:09:52.5]} 7... Nd5 {[%clk 0:10:01.1]} 8. Bc4 {[%clk
0:09:49.8]} 8... Nb6 {[%clk 0:10:01.7]} 9. Bb3 {[%clk 0:09:39.3]} 9... Nc6
{[%clk 0:10:02.2]} 10. O-O {[%clk 0:09:37.1]} 10... Na5 {[%clk 0:10:01.6]} 11.
Ne4 {[%clk 0:09:24]} 11... Nxb3 {[%clk 0:09:35.1]} 12. axb3 {[%clk 0:09:23.4]}
12... f6 {[%clk 0:09:36.4]} 13. exf6 {[%clk 0:09:07.6]} 13... exf6 {[%clk
0:09:33.6]} 14. Bf4 {[%clk 0:08:58.2]} 14... Nd5 {[%clk 0:09:30.4]} 15. Bd2
{[%clk 0:08:44.8]} 15... f5 {[%clk 0:09:23.3]} 16. Nc5 {[%clk 0:08:37.9]} 16...
b6 {[%clk 0:09:18]} 17. Nd3 {[%clk 0:08:35.9]} 17... Bb7 {[%clk 0:09:17.2]} 18.
Nfe5 {[%clk 0:08:27.8]} 18... Nf6 {[%clk 0:09:14.6]} 19. c3 {[%clk 0:08:07.1]}
19... Ne4 {[%clk 0:09:12.8]} 20. b4 {[%clk 0:08:02.3]} 20... a6 {[%clk
0:08:48.7]} 21. Be3 {[%clk 0:07:26.7]} 21... Qd6 {[%clk 0:07:13.5]} 22. Nf4
{[%clk 0:04:45.9]} 22... Kh8 {[%clk 0:05:15.2]} 23. Qb3 {[%clk 0:04:22.1]} 23...
g5 {[%clk 0:05:14.8]} 24. Ne6 {[%clk 0:03:13.8]} 24... Bd5 {[%clk 0:05:09.6]}
0-1

[Event "GrandPrix_30.05"]
[Site "Chess.com"]
[Date "2020.05.30"]
[Round "1"]
[White "Paulz64"]
[Black "KruHor"]
[Result "1/2-1/2"]
[WhiteElo "2170"]
[BlackElo "2446"]
[TimeControl "600+2"]
[EndTime "8:14:42 PDT"]
[Termination "Game drawn by agreement"]

1. d4 {[%clk 0:09:59.4]} 1... Nf6 {[%clk 0:09:59.8]} 2. c4 {[%clk 0:09:59.1]}
2... e6 {[%clk 0:09:59.7]} 3. Nf3 {[%clk 0:09:58.4]} 3... b6 {[%clk 0:09:36.6]}
4. Nc3 {[%clk 0:09:56]} 4... Bb7 {[%clk 0:09:34.5]} 5. Bg5 {[%clk 0:09:53.3]}
5... h6 {[%clk 0:09:27]} 6. Bh4 {[%clk 0:09:53.2]} 6... g5 {[%clk 0:09:26.3]} 7.
Bg3 {[%clk 0:09:53.5]} 7... Nh5 {[%clk 0:09:27.1]} 8. e3 {[%clk 0:09:27.1]} 8...
Nxg3 {[%clk 0:09:26.8]} 9. hxg3 {[%clk 0:09:25.8]} 9... Bg7 {[%clk 0:09:27.6]}
10. Bd3 {[%clk 0:08:56.8]} 10... d6 {[%clk 0:09:04.7]} 11. Qc2 {[%clk
0:08:28.8]} 11... Nd7 {[%clk 0:08:51.4]} 12. Be4 {[%clk 0:08:07.5]} 12... c6
{[%clk 0:08:48.1]} 13. O-O {[%clk 0:07:22.9]} 13... Rc8 {[%clk 0:08:05.5]} 14.
b4 {[%clk 0:06:37.9]} 14... a6 {[%clk 0:07:31.9]} 15. Rfd1 {[%clk 0:06:13.4]}
15... h5 {[%clk 0:07:23.6]} 16. Rac1 {[%clk 0:05:28.2]} 16... g4 {[%clk
0:07:04.6]} 17. Nh4 {[%clk 0:04:57.8]} 17... Bf6 {[%clk 0:07:01.1]} 18. b5
{[%clk 0:04:38]} 18... axb5 {[%clk 0:06:44.7]} 19. cxb5 {[%clk 0:04:35.8]} 19...
d5 {[%clk 0:06:43]} 20. bxc6 {[%clk 0:04:35]} 20... Rxc6 {[%clk 0:05:49.9]} 21.
Bd3 {[%clk 0:04:30.9]} 21... O-O {[%clk 0:04:57.3]} 22. Bb5 {[%clk 0:03:57.4]}
22... Rc7 {[%clk 0:04:56.6]} 23. Qa4 {[%clk 0:03:50.9]} 23... Nb8 {[%clk
0:04:09]} 24. Ne2 {[%clk 0:03:33.3]} 1/2-1/2

[Event "GrandPrix_30.05"]
[Site "Chess.com"]
[Date "2020.05.30"]
[Round "1"]
[White "bernereremit"]
[Black "moro182"]
[Result "0-1"]
[WhiteElo "2127"]
[BlackElo "2509"]
[TimeControl "600+2"]
[EndTime "8:14:45 PDT"]
[Termination "moro182 won by resignation"]

1. e4 {[%clk 0:10:01.9]} 1... e5 {[%clk 0:10:00.7]} 2. Nf3 {[%clk 0:10:01.9]}
2... Nc6 {[%clk 0:10:02.1]} 3. Bb5 {[%clk 0:10:02]} 3... a6 {[%clk 0:10:02.4]}
4. Ba4 {[%clk 0:10:01.8]} 4... Nge7 {[%clk 0:09:58]} 5. O-O {[%clk 0:09:30.5]}
5... g6 {[%clk 0:09:57.8]} 6. d4 {[%clk 0:09:27.4]} 6... exd4 {[%clk 0:09:50.4]}
7. c3 {[%clk 0:09:27.2]} 7... dxc3 {[%clk 0:09:28.6]} 8. Nxc3 {[%clk 0:09:26.1]}
8... Bg7 {[%clk 0:09:29.3]} 9. Nd5 {[%clk 0:09:03.5]} 9... O-O {[%clk
0:08:48.4]} 10. Bg5 {[%clk 0:08:57.3]} 10... f6 {[%clk 0:08:31.4]} 11. Bh4
{[%clk 0:08:36.8]} 11... d6 {[%clk 0:08:24.6]} 12. Rc1 {[%clk 0:07:28.2]} 12...
Kh8 {[%clk 0:08:05.4]} 13. h3 {[%clk 0:07:22.7]} 13... Bd7 {[%clk 0:07:29.8]}
14. a3 {[%clk 0:07:01.4]} 14... Rc8 {[%clk 0:07:10.9]} 15. b4 {[%clk 0:06:59.8]}
15... Be6 {[%clk 0:06:53.2]} 16. Qd2 {[%clk 0:06:45.6]} 16... Bg8 {[%clk
0:06:46.9]} 17. Rfd1 {[%clk 0:06:41.7]} 17... g5 {[%clk 0:05:44.3]} 18. Bg3
{[%clk 0:06:30.1]} 18... h6 {[%clk 0:05:34.2]} 19. Nh2 {[%clk 0:05:46.9]} 19...
f5 {[%clk 0:05:20]} 20. Nxe7 {[%clk 0:05:41.2]} 20... Nxe7 {[%clk 0:05:17.5]}
21. exf5 {[%clk 0:05:42.6]} 21... Nxf5 {[%clk 0:05:19.4]} 22. Ng4 {[%clk
0:05:31.6]} 22... Nxg3 {[%clk 0:04:53.5]} 23. fxg3 {[%clk 0:05:31.6]} 23... h5
{[%clk 0:04:47.1]} 24. Ne3 {[%clk 0:05:11.7]} 24... Qf6 {[%clk 0:04:32.1]} 25.
Kh2 {[%clk 0:05:01.8]} 25... h4 {[%clk 0:04:06.1]} 26. gxh4 {[%clk 0:04:29.4]}
26... Qf4+ {[%clk 0:03:37.3]} 27. Kh1 {[%clk 0:04:26.7]} 27... Be5 {[%clk
0:03:26.4]} 28. Ng4 {[%clk 0:04:18.1]} 28... Qxd2 {[%clk 0:03:26.7]} 29. Rxd2
{[%clk 0:04:18.4]} 29... Bf4 {[%clk 0:03:28.6]} 0-1

[Event "GrandPrix_30.05"]
[Site "Chess.com"]
[Date "2020.05.30"]
[Round "1"]
[White "MikaelyanArman1996"]
[Black "fm_magua"]
[Result "1-0"]
[WhiteElo "2279"]
[BlackElo "1864"]
[TimeControl "600+2"]
[EndTime "8:14:57 PDT"]
[Termination "MikaelyanArman1996 won by resignation"]

1. d4 {[%clk 0:10:00.1]} 1... Nf6 {[%clk 0:10:00]} 2. c4 {[%clk 0:09:58.6]} 2...
g6 {[%clk 0:10:01.3]} 3. Nc3 {[%clk 0:09:58.7]} 3... Bg7 {[%clk 0:10:02.4]} 4.
e4 {[%clk 0:09:59.7]} 4... d6 {[%clk 0:10:03.7]} 5. Be2 {[%clk 0:09:58.7]} 5...
O-O {[%clk 0:10:05.3]} 6. Be3 {[%clk 0:09:56.8]} 6... e5 {[%clk 0:10:06.4]} 7.
d5 {[%clk 0:09:52.6]} 7... a5 {[%clk 0:10:07.3]} 8. g4 {[%clk 0:09:44.5]} 8...
Na6 {[%clk 0:10:08.1]} 9. f3 {[%clk 0:09:18.8]} 9... Nc5 {[%clk 0:10:02]} 10. h4
{[%clk 0:09:13.7]} 10... c6 {[%clk 0:10:02.9]} 11. h5 {[%clk 0:09:06.5]} 11...
cxd5 {[%clk 0:10:03.9]} 12. cxd5 {[%clk 0:09:08.2]} 12... b5 {[%clk 0:10:04.8]}
13. Bxb5 {[%clk 0:08:46.4]} 13... Ba6 {[%clk 0:10:01.9]} 14. Bxa6 {[%clk
0:08:35.1]} 14... Rxa6 {[%clk 0:10:00.8]} 15. Qd2 {[%clk 0:08:19.6]} 15... Nfd7
{[%clk 0:09:59.5]} 16. Nge2 {[%clk 0:07:35.4]} 16... Rb6 {[%clk 0:09:58.1]} 17.
Rb1 {[%clk 0:07:19]} 17... Qb8 {[%clk 0:09:57]} 18. Kf1 {[%clk 0:06:35.4]} 18...
f5 {[%clk 0:09:42.8]} 19. gxf5 {[%clk 0:06:26.7]} 19... gxf5 {[%clk 0:09:43.8]}
20. Kg1 {[%clk 0:05:11.1]} 20... fxe4 {[%clk 0:09:30.7]} 21. fxe4 {[%clk
0:05:11]} 21... Nf6 {[%clk 0:09:31.1]} 22. Ng3 {[%clk 0:05:03.8]} 22... Rb4
{[%clk 0:09:20.1]} 23. h6 {[%clk 0:04:58.9]} 23... Bh8 {[%clk 0:09:17.1]} 24.
Bxc5 {[%clk 0:04:44.5]} 24... dxc5 {[%clk 0:09:17.2]} 25. Rf1 {[%clk 0:04:06.9]}
25... Rxb2 {[%clk 0:09:07.6]} 26. Qg5+ {[%clk 0:04:05]} 26... Kf7 {[%clk
0:09:09]} 27. Qf5 {[%clk 0:03:59]} 27... Qc8 {[%clk 0:08:19.2]} 28. Qxh7+ {[%clk
0:03:55.1]} 28... Ke8 {[%clk 0:08:20]} 29. Qg6+ {[%clk 0:03:53.2]} 29... Kd8
{[%clk 0:08:18.3]} 30. h7 {[%clk 0:03:46.8]} 30... c4 {[%clk 0:08:05.1]} 31. Rh2
{[%clk 0:03:14.4]} 31... Qc5+ {[%clk 0:07:27.4]} 32. Kh1 {[%clk 0:03:13.3]}
32... Rxh2+ {[%clk 0:07:27.6]} 33. Kxh2 {[%clk 0:03:15.2]} 33... Qe7 {[%clk
0:07:24.2]} 34. Nf5 {[%clk 0:02:58.9]} 34... Qxh7+ {[%clk 0:07:18.2]} 35. Qxh7
{[%clk 0:02:59.7]} 35... Nxh7 {[%clk 0:07:20.1]} 36. Rb1 {[%clk 0:03:00.8]}
36... Kc7 {[%clk 0:07:12.4]} 37. d6+ {[%clk 0:02:54.7]} 37... Kc6 {[%clk
0:07:12.3]} 38. Nd5 {[%clk 0:02:53.6]} 38... Nf6 {[%clk 0:07:06]} 39. Nde7+
{[%clk 0:02:04.6]} 39... Kc5 {[%clk 0:07:00.9]} 40. Rb7 {[%clk 0:01:49.9]} 40...
Nxe4 {[%clk 0:06:48]} 41. d7 {[%clk 0:01:50.3]} 41... Nd6 {[%clk 0:06:48.8]} 42.
Rc7+ {[%clk 0:01:44.9]} 42... Kb6 {[%clk 0:06:50]} 43. Nd5+ {[%clk 0:01:39.4]}
1-0